fUST/lending_fUST_20250812
["ID","MTS","AMOUNT","RATE_DAILY","PERIOD"]
[378746556,1755000639198,-464.83018892,0.00018014,2]
[378746557,1755000639207,-460.0,0.00018014,2]
[378746558,1755000639217,-460.0,0.00018014,2]
[378746559,1755000639227,-463.67669307,0.00018014,2]
[378746560,1755000639236,-460.0,0.00018014,2]
[378746561,1755000639246,-461.78775046,0.00018014,2]
[378746562,1755000639255,-460.0,0.00018014,2]
[378746563,1755000639265,-460.0,0.00018014,2]
[378746564,1755000639274,-460.0,0.00018014,2]
[378746565,1755000639284,-460.0,0.00018014,2]
[378746566,1755000639293,-460.0,0.00018014,2]
[378746567,1755000639303,-460.0,0.00018014,2]
[378746568,1755000639312,-460.0,0.00018014,2]
[378746569,1755000639322,-460.0,0.00018014,2]
[378746570,1755000639331,-460.0,0.00018014,2]
[378746571,1755000639341,-460.0,0.00018014,2]
[378746572,1755000639351,-460.0,0.00018014,2]
[378746573,1755000639360,-460.0,0.00018014,2]
[378746574,1755000639370,-460.0,0.00018014,2]
[378746575,1755000639379,-460.0,0.00018014,2]
[378746576,1755000639389,-460.0,0.00018014,2]
[378746577,1755000639399,-460.0,0.00018014,2]
[378746578,1755000639408,-460.0,0.00018014,2]
[378746579,1755000639417,-460.0,0.00018014,2]
[378746580,1755000639427,-460.0,0.00018014,2]
[378746581,1755000639436,-460.0,0.00018014,2]
[378746582,1755000639446,-460.0,0.00018014,2]
[378746583,1755000639455,-1000.0,0.00018014,2]
[378746584,1755000639465,-473.81,0.00018014,2]
[378746585,1755000639474,-289.93,0.00018278,3]
[378746586,1755000639483,-869.81,0.00018278,3]
[378746587,1755000639492,-1252.28,0.00018285,2]
[378746588,1755000639502,-460.0,0.00018285,2]
[378746589,1755000639511,-460.0,0.00018285,2]
[378746590,1755000639520,-460.0,0.00018285,2]
[378746592,1755000639529,-460.0,0.00018285,2]
[378746594,1755000639538,-995.54,0.00018285,2]
[378746595,1755000639547,-893.56,0.00018285,2]
[378746596,1755000639556,-460.0,0.00018285,2]
[378746597,1755000639566,-460.0,0.00018285,2]
[378746599,1755000639575,-635.65,0.00018285,2]
[378746600,1755000639584,-460.0,0.00018285,2]
[378746601,1755000639594,-2115.39,0.00018285,2]
[378746602,1755000639603,-267.98013411,0.00018285,2]
[378746603,1755000639613,-460.0,0.00018286,2]
[378746604,1755000639622,-460.0,0.00018286,2]
[378746606,1755000639631,-460.0,0.00018286,2]
[378746608,1755000639640,-460.0,0.00018286,2]
[378746610,1755000639650,-460.0,0.00018286,2]
[378746611,1755000639660,-460.0,0.00018286,2]
[378746612,1755000639669,-460.0,0.00018286,2]
[378746613,1755000639678,-460.0,0.00018286,2]
[378746614,1755000639688,-576.41,0.00018286,2]
[378746615,1755000639697,-460.0,0.00018286,2]
[378746616,1755000639707,-460.0,0.00018286,2]
[378746617,1755000639716,-460.0,0.00018286,2]
[378746618,1755000639726,-460.0,0.00018286,2]
[378746619,1755000639735,-460.0,0.00018286,2]
[378746620,1755000639744,-460.0,0.00018286,2]
[378746621,1755000639753,-460.0,0.00018286,2]
[378746622,1755000639763,-460.0,0.00018286,2]
[378746623,1755000639773,-460.0,0.00018286,2]
[378746624,1755000639783,-460.0,0.00018286,2]
[378746625,1755000639792,-460.0,0.00018286,2]
[378746626,1755000639802,-460.0,0.00018286,2]
[378746627,1755000639811,-460.0,0.00018286,2]
[378746628,1755000639820,-460.0,0.00018286,2]
[378746629,1755000639830,-664.35,0.00018286,2]
[378746630,1755000639839,-460.0,0.00018286,2]
[378746631,1755000639850,-460.0,0.00018286,2]
[378746632,1755000639861,-601.75,0.00018286,2]
[378746633,1755000639870,-460.0,0.00018286,2]
[378746634,1755000639880,-460.0,0.00018286,2]
[378746635,1755000639890,-460.0,0.00018286,2]
[378746636,1755000639899,-1560.37,0.00018286,2]
[378746638,1755000639909,-460.0,0.00018286,2]
[378746639,1755000639918,-460.0,0.00018286,2]
[378746640,1755000639928,-460.0,0.00018286,2]
[378746641,1755000639937,-460.0,0.00018286,2]
[378746642,1755000639947,-505.6,0.00018286,2]
[378746643,1755000639956,-705.68,0.00018286,2]
[378746644,1755000639965,-460.0,0.00018286,2]
[378746645,1755000639974,-460.0,0.00018286,2]
[378746646,1755000639983,-460.0,0.00018286,2]
[378746647,1755000639992,-362.31731988,0.00018286,2]
[378746648,1755000640002,-2670.17,0.00018286,2]
[378746649,1755000640012,-460.0,0.00018286,2]
[378746650,1755000640021,-460.0,0.00018286,2]
[378746651,1755000640030,-460.0,0.00018286,2]
[378746652,1755000640040,-460.0,0.00018286,2]
[378746653,1755000640049,-460.0,0.00018286,2]
[378746654,1755000640058,-460.0,0.00018286,2]
[378746655,1755000640067,-460.0,0.00018286,2]
[378746656,1755000640077,-460.0,0.00018286,2]
[378746657,1755000640086,-661.64,0.00018286,2]
[378746658,1755000640096,-460.0,0.00018286,2]
[378746659,1755000640106,-836.09,0.00018286,2]
[378746660,1755000640115,-460.0,0.00018286,2]
[378746661,1755000640124,-930.07,0.00018286,2]
[378746662,1755000640134,-460.0,0.00018286,2]
[378746663,1755000640143,-460.0,0.00018286,2]
[378746664,1755000640152,-461.11,0.00018286,2]
[378746665,1755000640162,-460.0,0.00018286,2]
[378746666,1755000640171,-460.0,0.00018286,2]
[378746667,1755000640181,-6177.62,0.00018286,2]
[378746668,1755000640190,-460.0,0.00018286,2]
[378746669,1755000640200,-573.23,0.00018286,2]
[378746670,1755000640209,-460.0,0.00018286,2]
[378746671,1755000640219,-1703.42,0.00018286,2]
[378746672,1755000640228,-625.97,0.00018286,2]
[378746673,1755000640238,-460.0,0.00018286,2]
[378746674,1755000640248,-1061.0,0.00018286,2]
[378746675,1755000640257,-537.1,0.00018286,2]
[378746676,1755000640266,-475.24,0.00018286,2]
[378746677,1755000640276,-460.0,0.00018286,2]
[378746678,1755000640285,-666.44,0.00018286,2]
[378746679,1755000640295,-460.0,0.00018286,2]
[378746680,1755000640304,-638.44,0.00018286,2]
[378746681,1755000640314,-2273.73,0.00018286,2]
[378746682,1755000640323,-460.0,0.00018286,2]
[378746683,1755000640333,-460.0,0.00018287,2]
[378746684,1755000640342,-736.75,0.00018287,2]
[378746685,1755000640352,-460.0,0.00018287,2]
[378746686,1755000640361,-460.0,0.00018287,2]
[378746687,1755000640370,-460.0,0.00018287,2]
[378746688,1755000640381,-460.0,0.00018287,2]
[378746689,1755000640391,-460.0,0.00018287,2]
[378746690,1755000640400,-460.0,0.00018287,2]
[378746691,1755000640409,-460.0,0.00018287,2]
[378746692,1755000640419,-460.0,0.00018287,2]
[378746693,1755000640428,-460.0,0.00018287,2]
[378746694,1755000640438,-460.0,0.00018287,2]
[378746695,1755000640448,-460.0,0.00018287,2]
[378746696,1755000640457,-460.0,0.00018287,2]
[378746697,1755000640467,-460.0,0.00018287,2]
[378746698,1755000640476,-460.0,0.00018287,2]
[378746699,1755000640486,-460.0,0.00018287,2]
[378746700,1755000640495,-702.07,0.00018287,2]
[378746701,1755000640505,-953.07,0.00018287,2]
[378746702,1755000640515,-910.9,0.00018287,2]
[378746703,1755000640524,-969.47,0.00018287,2]
[378746704,1755000640534,-460.0,0.00018287,2]
[378746705,1755000640543,-919.15,0.00018287,2]
[378746706,1755000640553,-489.17,0.00018287,2]
[378746707,1755000640562,-460.0,0.00018287,2]
[378746708,1755000640571,-1201.31,0.00018287,2]
[378746709,1755000640580,-460.0,0.00018287,2]
[378746710,1755000640590,-1237.8,0.00018287,2]
[378746711,1755000640600,-531.2,0.00018287,2]
[378746712,1755000640609,-460.0,0.00018287,2]
[378746713,1755000640619,-460.0,0.00018287,2]
[378746714,1755000640628,-460.0,0.00018287,2]
[378746715,1755000640638,-1448.93,0.00018287,2]
[378746716,1755000640647,-460.0,0.00018287,2]
[378746717,1755000640657,-460.0,0.00018288,2]
[378746718,1755000640666,-489.838978,0.00018288,2]
[378746719,1755000640676,-460.0,0.00018288,2]
[378746720,1755000640685,-460.0,0.00018288,2]
[378746721,1755000640695,-460.0,0.00018288,2]
[378746722,1755000640704,-460.0,0.00018288,2]
[378746723,1755000640714,-460.0,0.00018288,2]
[378746724,1755000640724,-460.0,0.00018288,2]
[378746725,1755000640733,-460.0,0.00018288,2]
[378746726,1755000640742,-460.0,0.00018288,2]
[378746727,1755000640752,-375.34549564,0.00018288,2]
[378746728,1755000640761,-460.0,0.00018288,2]
[378746729,1755000640771,-460.0,0.00018288,2]
[378746730,1755000640780,-460.0,0.00018288,2]
[378746731,1755000640789,-461.31292444,0.00018288,2]
[378746732,1755000640799,-460.0,0.00018288,2]
[378746733,1755000640808,-460.0,0.00018288,2]
[378746734,1755000640818,-460.0,0.00018288,2]
[378746735,1755000640827,-460.0,0.00018288,2]
[378746736,1755000640838,-460.0,0.00018288,2]
[378746737,1755000640850,-200.0,0.0001837,2]
[378746738,1755000640864,-200.0,0.0001837,2]
[378746739,1755000640874,-200.0,0.0001837,2]
[378746740,1755000640883,-200.0,0.0001837,2]
[378746741,1755000640892,-1174.68564458,0.0001846,2]
[378746742,1755000640904,-1252.28,0.00018559,2]
[378746743,1755000640914,-460.0,0.00018559,2]
[378746744,1755000640924,-460.0,0.00018559,2]
[378746745,1755000640934,-460.0,0.00018559,2]
[378746746,1755000640943,-995.54,0.00018559,2]
[378746747,1755000640953,-893.56,0.00018559,2]
[378746748,1755000640963,-460.0,0.00018559,2]
[378746749,1755000640974,-460.0,0.00018559,2]
[378746750,1755000640983,-635.65,0.00018559,2]
[378746751,1755000640993,-460.0,0.00018559,2]
[378746752,1755000641002,-2115.39,0.00018559,2]
[378746753,1755000641011,-460.0,0.0001856,2]
[378746754,1755000641021,-370.44386541,0.0001856,2]
[378746755,1755000641030,-460.0,0.0001856,2]
[378746756,1755000641039,-460.0,0.0001856,2]
[378746757,1755000641049,-460.0,0.0001856,2]
[378746758,1755000641058,-460.0,0.0001856,2]
[378746759,1755000641068,-576.41,0.0001856,2]
[378746760,1755000641077,-460.0,0.0001856,2]
[378746761,1755000641086,-460.0,0.0001856,2]
[378746762,1755000641095,-460.0,0.0001856,2]
[378746763,1755000641105,-460.0,0.0001856,2]
[378746764,1755000641115,-460.0,0.0001856,2]
[378746765,1755000641124,-460.0,0.0001856,2]
[378746766,1755000641135,-460.0,0.0001856,2]
[378746767,1755000641144,-460.0,0.0001856,2]
[378746768,1755000641154,-460.0,0.0001856,2]
[378746769,1755000641163,-460.0,0.0001856,2]
[378746770,1755000641173,-460.0,0.0001856,2]
[378746771,1755000641183,-460.0,0.0001856,2]
[378746772,1755000641192,-460.0,0.0001856,2]
[378746773,1755000641202,-460.0,0.0001856,2]
[378746774,1755000641211,-664.35,0.0001856,2]
[378746775,1755000641221,-460.0,0.0001856,2]
[378746776,1755000641231,-460.0,0.0001856,2]
[378746777,1755000641240,-601.75,0.0001856,2]
[378746778,1755000641250,-460.0,0.0001856,2]
[378746779,1755000641260,-460.0,0.0001856,2]
[378746780,1755000641270,-460.0,0.0001856,2]
[378746781,1755000641279,-1560.37,0.0001856,2]
[378746782,1755000641289,-460.0,0.0001856,2]
[378746783,1755000641298,-460.0,0.0001856,2]
[378746784,1755000641308,-460.0,0.0001856,2]
[378746785,1755000641453,-460.0,0.0001856,2]
[378746786,1755000641468,-505.6,0.0001856,2]
[378746787,1755000641477,-705.68,0.0001856,2]
[378746788,1755000641487,-460.0,0.0001856,2]
[378746789,1755000641496,-460.0,0.0001856,2]
[378746790,1755000641506,-460.0,0.0001856,2]
[378746791,1755000641516,-2670.17,0.0001856,2]
[378746792,1755000641525,-460.0,0.0001856,2]
[378746793,1755000641535,-460.0,0.0001856,2]
[378746794,1755000641544,-460.0,0.0001856,2]
[378746795,1755000641554,-460.0,0.0001856,2]
[378746796,1755000641563,-460.0,0.0001856,2]
[378746797,1755000641572,-460.0,0.0001856,2]
[378746798,1755000641582,-460.0,0.0001856,2]
[378746799,1755000641591,-661.64,0.0001856,2]
[378746800,1755000641601,-460.0,0.0001856,2]
[378746801,1755000641611,-836.09,0.0001856,2]
[378746802,1755000641620,-460.0,0.0001856,2]
[378746803,1755000641630,-930.07,0.0001856,2]
[378746804,1755000641639,-460.0,0.0001856,2]
[378746805,1755000641650,-460.0,0.0001856,2]
[378746806,1755000641659,-461.11,0.0001856,2]
[378746807,1755000641669,-460.0,0.0001856,2]
[378746808,1755000641678,-328.41696415,0.0001856,2]
[378746809,1755000641687,-6177.62,0.0001856,2]
[378746810,1755000641698,-460.0,0.0001856,2]
[378746811,1755000641707,-573.23,0.0001856,2]
[378746812,1755000641717,-460.0,0.0001856,2]
[378746813,1755000641726,-1703.42,0.0001856,2]
[378746814,1755000641735,-625.97,0.0001856,2]
[378746815,1755000641745,-460.0,0.0001856,2]
[378746816,1755000641755,-1061.0,0.0001856,2]
[378746817,1755000641765,-537.1,0.0001856,2]
[378746818,1755000641774,-475.24,0.0001856,2]
[378746819,1755000641784,-164.92923225,0.0001856,2]
[378746820,1755000641793,-666.44,0.0001856,2]
[378746821,1755000641802,-460.0,0.0001856,2]
[378746822,1755000641812,-638.44,0.0001856,2]
[378746823,1755000641821,-2273.73,0.0001856,2]
[378746824,1755000641831,-460.0,0.0001856,2]
[378746825,1755000641841,-460.0,0.00018561,2]
[378746826,1755000641854,-736.75,0.00018561,2]
[378746827,1755000641865,-460.0,0.00018561,2]
[378746828,1755000641874,-460.0,0.00018561,2]
[378746829,1755000641883,-460.0,0.00018561,2]
[378746830,1755000641895,-460.0,0.00018561,2]
[378746831,1755000641904,-460.0,0.00018561,2]
[378746832,1755000641914,-460.0,0.00018561,2]
[378746833,1755000641923,-460.0,0.00018561,2]
[378746834,1755000641934,-460.0,0.00018561,2]
[378746835,1755000641943,-460.0,0.00018561,2]
[378746836,1755000641953,-460.0,0.00018561,2]
[378746837,1755000641962,-460.0,0.00018561,2]
[378746838,1755000641972,-460.0,0.00018561,2]
[378746839,1755000641981,-460.0,0.00018561,2]
[378746840,1755000641991,-460.0,0.00018561,2]
[378746841,1755000642000,-460.0,0.00018561,2]
[378746842,1755000642009,-702.07,0.00018561,2]
[378746843,1755000642019,-953.07,0.00018561,2]
[378746844,1755000642029,-910.9,0.00018561,2]
[378746845,1755000642038,-969.47,0.00018561,2]
[378746846,1755000642047,-460.0,0.00018561,2]
[378746847,1755000642057,-919.15,0.00018561,2]
[378746848,1755000642067,-489.17,0.00018561,2]
[378746849,1755000642076,-460.0,0.00018561,2]
[378746850,1755000642085,-1201.31,0.00018561,2]
[378746851,1755000642095,-460.0,0.00018561,2]
[378746852,1755000642104,-1237.8,0.00018561,2]
[378746853,1755000642113,-531.2,0.00018561,2]
[378746854,1755000642122,-460.0,0.00018561,2]
[378746855,1755000642132,-460.0,0.00018561,2]
[378746856,1755000642141,-1448.93,0.00018561,2]
[378746857,1755000642151,-460.0,0.00018561,2]
[378746858,1755000642160,-460.0,0.00018562,2]
[378746859,1755000642170,-460.0,0.00018562,2]
[378746860,1755000642179,-460.0,0.00018562,2]
[378746861,1755000642189,-460.0,0.00018562,2]
[378746862,1755000642198,-460.0,0.00018562,2]
[378746863,1755000642208,-456.94476645,0.00018562,2]
[378746864,1755000642218,-460.0,0.00018562,2]
[378746865,1755000642227,-460.0,0.00018562,2]
[378746866,1755000642237,-460.0,0.00018562,2]
[378746867,1755000642247,-460.0,0.00018562,2]
[378746868,1755000642257,-460.0,0.00018562,2]
[378746869,1755000642267,-460.0,0.00018562,2]
[378746870,1755000642276,-460.0,0.00018562,2]
[378746871,1755000642286,-22202.33780862,0.00018734,2]
[378746872,1755000642296,-501.2477495,0.00018742,2]
[378746873,1755000642305,-500.0,0.00018742,2]
[378746874,1755000642314,-500.0,0.00018742,2]
[378746875,1755000642324,-1252.28,0.00018833,2]
[378746876,1755000642334,-460.0,0.00018833,2]
[378746877,1755000642344,-460.0,0.00018833,2]
[378746878,1755000642363,-460.0,0.00018833,2]
[378746879,1755000642375,-995.54,0.00018833,2]
[378746880,1755000642386,-893.56,0.00018833,2]
[378746881,1755000642396,-460.0,0.00018833,2]
[378746882,1755000642406,-460.0,0.00018833,2]
[378746883,1755000642416,-635.65,0.00018833,2]
[378746884,1755000642426,-460.0,0.00018833,2]
[378746885,1755000642437,-2115.39,0.00018833,2]
[378746886,1755000642447,-460.0,0.00018834,2]
[378746887,1755000642457,-460.0,0.00018834,2]
[378746888,1755000642468,-460.0,0.00018834,2]
[378746889,1755000642478,-460.0,0.00018834,2]
[378746890,1755000642488,-576.41,0.00018834,2]
[378746891,1755000642498,-460.0,0.00018834,2]
[378746892,1755000642508,-460.0,0.00018834,2]
[378746893,1755000642519,-460.0,0.00018834,2]
[378746894,1755000642529,-460.0,0.00018834,2]
[378746895,1755000642539,-460.0,0.00018834,2]
[378746896,1755000642550,-460.0,0.00018834,2]
[378746897,1755000642560,-460.0,0.00018834,2]
[378746898,1755000642570,-460.0,0.00018834,2]
[378746899,1755000642580,-460.0,0.00018834,2]
[378746900,1755000642590,-664.35,0.00018834,2]
[378746901,1755000642600,-460.0,0.00018834,2]
[378746902,1755000642610,-601.75,0.00018834,2]
[378746903,1755000642620,-460.0,0.00018834,2]
[378746904,1755000642630,-460.0,0.00018834,2]
[378746905,1755000642640,-460.0,0.00018834,2]
[378746906,1755000642650,-1560.37,0.00018834,2]
[378746907,1755000642659,-460.0,0.00018834,2]
[378746908,1755000642669,-460.0,0.00018834,2]
[378746909,1755000642679,-460.0,0.00018834,2]
[378746910,1755000642690,-460.0,0.00018834,2]
[378746911,1755000642700,-505.6,0.00018834,2]
[378746912,1755000642710,-705.68,0.00018834,2]
[378746913,1755000642720,-460.0,0.00018834,2]
[378746914,1755000642730,-460.0,0.00018834,2]
[378746915,1755000642740,-460.0,0.00018834,2]
[378746916,1755000642749,-2670.17,0.00018834,2]
[378746917,1755000642759,-460.0,0.00018834,2]
[378746918,1755000642771,-460.0,0.00018834,2]
[378746919,1755000642780,-460.0,0.00018834,2]
[378746920,1755000642790,-460.0,0.00018834,2]
[378746921,1755000642800,-460.0,0.00018834,2]
[378746922,1755000642810,-460.0,0.00018834,2]
[378746924,1755000642820,-460.0,0.00018834,2]
[378746926,1755000642830,-661.64,0.00018834,2]
[378746927,1755000642839,-460.0,0.00018834,2]
[378746928,1755000642850,-836.09,0.00018834,2]
[378746929,1755000642862,-460.0,0.00018834,2]
[378746930,1755000642871,-930.07,0.00018834,2]
[378746931,1755000642881,-460.0,0.00018834,2]
[378746932,1755000642892,-460.0,0.00018834,2]
[378746933,1755000642902,-461.11,0.00018834,2]
[378746934,1755000642911,-460.0,0.00018834,2]
[378746935,1755000642921,-6177.62,0.00018834,2]
[378746936,1755000642932,-460.0,0.00018834,2]
[378746937,1755000642942,-573.23,0.00018834,2]
[378746938,1755000642952,-460.0,0.00018834,2]
[378746940,1755000642961,-1703.42,0.00018834,2]
[378746941,1755000642971,-625.97,0.00018834,2]
[378746943,1755000642986,-460.0,0.00018834,2]
[378746944,1755000642997,-1061.0,0.00018834,2]
[378746945,1755000643007,-537.1,0.00018834,2]
[378746946,1755000643017,-475.24,0.00018834,2]
[378746947,1755000643027,-666.44,0.00018834,2]
[378746948,1755000643037,-460.0,0.00018834,2]
[378746949,1755000643047,-638.44,0.00018834,2]
[378746950,1755000643057,-2273.73,0.00018834,2]
[378746951,1755000643067,-460.0,0.00018834,2]
[378746952,1755000643077,-493.10588641,0.00018835,2]
[378746954,1755000643086,-736.75,0.00018835,2]
[378746955,1755000643096,-460.0,0.00018835,2]
[378746956,1755000643106,-460.0,0.00018835,2]
[378746957,1755000643116,-460.0,0.00018835,2]
[378746958,1755000643126,-460.0,0.00018835,2]
[378746959,1755000643136,-460.0,0.00018835,2]
[378746960,1755000643146,-460.0,0.00018835,2]
[378746961,1755000643155,-460.0,0.00018835,2]
[378746962,1755000643165,-460.0,0.00018835,2]
[378746963,1755000643176,-460.0,0.00018835,2]
[378746964,1755000643186,-460.0,0.00018835,2]
[378746966,1755000643196,-460.0,0.00018835,2]
[378746968,1755000643206,-460.0,0.00018835,2]
[378746969,1755000643215,-460.0,0.00018835,2]
[378746970,1755000643225,-702.07,0.00018835,2]
[378746971,1755000643235,-953.07,0.00018835,2]
[378746972,1755000643245,-910.9,0.00018835,2]
[378746973,1755000643254,-969.47,0.00018835,2]
[378746974,1755000643264,-460.0,0.00018835,2]
[378746975,1755000643274,-919.15,0.00018835,2]
[378746976,1755000643284,-489.17,0.00018835,2]
[378746977,1755000643294,-460.0,0.00018835,2]
[378746978,1755000643304,-1201.31,0.00018835,2]
[378746979,1755000643314,-172.86459669,0.00018835,2]
[378746980,1755000643324,-1237.8,0.00018835,2]
[378746981,1755000643333,-531.2,0.00018835,2]
[378746982,1755000643343,-460.0,0.00018835,2]
[378746983,1755000643353,-460.0,0.00018835,2]
[378746984,1755000643363,-1448.93,0.00018835,2]
[378746985,1755000643373,-460.0,0.00018835,2]
[378746986,1755000643383,-460.0,0.00018836,2]
[378746987,1755000643392,-460.0,0.00018836,2]
[378746988,1755000643403,-460.0,0.00018836,2]
[378746989,1755000643412,-460.0,0.00018836,2]
[378746990,1755000643423,-460.0,0.00018836,2]
[378746991,1755000643433,-460.0,0.00018836,2]
[378746993,1755000643442,-460.0,0.00018836,2]
[378746995,1755000643452,-460.0,0.00018836,2]
[378746996,1755000643462,-460.0,0.00018836,2]
[378746997,1755000643472,-2102.33570152,0.000189,2]
[378746998,1755000643482,-1174.68564457,0.0001894,2]
[378746999,1755000643491,-270.25,0.00019,2]
[378747000,1755000643501,-500.0,0.00019014,2]
[378747001,1755000643511,-500.0,0.00019014,2]
[378747002,1755000643522,-208.0,0.00019078,2]
[378747003,1755000643532,-1252.28,0.00019107,2]
[378747004,1755000643541,-460.0,0.00019107,2]
[378747005,1755000643551,-460.0,0.00019107,2]
[378747006,1755000643560,-460.0,0.00019107,2]
[378747008,1755000643570,-995.54,0.00019107,2]
[378747009,1755000643579,-893.56,0.00019107,2]
[378747010,1755000643589,-460.0,0.00019107,2]
[378747011,1755000643599,-203.26591154,0.00019107,2]
[378747012,1755000643610,-635.65,0.00019107,2]
[378747013,1755000643622,-460.0,0.00019107,2]
[378747014,1755000643633,-2115.39,0.00019107,2]
[378747015,1755000643643,-460.0,0.00019108,2]
[378747016,1755000643654,-460.0,0.00019108,2]
[378747017,1755000643665,-460.0,0.00019108,2]
[378747018,1755000643674,-460.0,0.00019108,2]
[378747019,1755000643684,-576.41,0.00019108,2]
[378747020,1755000643693,-460.0,0.00019108,2]
[378747021,1755000643702,-460.0,0.00019108,2]
[378747022,1755000643712,-460.0,0.00019108,2]
[378747023,1755000643721,-460.0,0.00019108,2]
[378747024,1755000643731,-460.0,0.00019108,2]
[378747025,1755000643740,-460.0,0.00019108,2]
[378747026,1755000643749,-460.0,0.00019108,2]
[378747027,1755000643760,-664.35,0.00019108,2]
[378747028,1755000643771,-460.0,0.00019108,2]
[378747029,1755000643781,-601.75,0.00019108,2]
[378747030,1755000643790,-460.0,0.00019108,2]
[378747031,1755000643800,-460.0,0.00019108,2]
[378747032,1755000643809,-460.0,0.00019108,2]
[378747033,1755000643819,-460.0,0.00019108,2]
[378747034,1755000643829,-1560.37,0.00019108,2]
[378747035,1755000643839,-460.0,0.00019108,2]
[378747036,1755000643849,-460.0,0.00019108,2]
[378747037,1755000643861,-460.0,0.00019108,2]
[378747038,1755000643871,-505.6,0.00019108,2]
[378747039,1755000643881,-705.68,0.00019108,2]
[378747040,1755000643891,-460.0,0.00019108,2]
[378747041,1755000643901,-227.74300921,0.00019108,2]
[378747042,1755000643910,-460.0,0.00019108,2]
[378747043,1755000643983,-2670.17,0.00019108,2]
[378747044,1755000643993,-460.0,0.00019108,2]
[378747045,1755000644002,-460.0,0.00019108,2]
[378747046,1755000644012,-460.0,0.00019108,2]
[378747047,1755000644022,-460.0,0.00019108,2]
[378747048,1755000644031,-460.0,0.00019108,2]
[378747049,1755000644041,-460.0,0.00019108,2]
[378747050,1755000644050,-661.64,0.00019108,2]
[378747051,1755000644059,-460.0,0.00019108,2]
[378747052,1755000644069,-836.09,0.00019108,2]
[378747053,1755000644078,-220.13047612,0.00019108,2]
[378747054,1755000644088,-930.07,0.00019108,2]
[378747055,1755000644097,-460.0,0.00019108,2]
[378747056,1755000644106,-460.0,0.00019108,2]
[378747057,1755000644116,-461.11,0.00019108,2]
[378747058,1755000644127,-460.0,0.00019108,2]
[378747059,1755000644136,-6177.62,0.00019108,2]
[378747060,1755000644145,-460.0,0.00019108,2]
[378747061,1755000644155,-573.23,0.00019108,2]
[378747062,1755000644165,-1703.42,0.00019108,2]
[378747063,1755000644174,-625.97,0.00019108,2]
[378747064,1755000644184,-460.0,0.00019108,2]
[378747065,1755000644193,-1061.0,0.00019108,2]
[378747066,1755000644202,-537.1,0.00019108,2]
[378747067,1755000644211,-475.24,0.00019108,2]
[378747068,1755000644221,-460.0,0.00019108,2]
[378747069,1755000644231,-666.44,0.00019108,2]
[378747070,1755000644240,-638.44,0.00019108,2]
[378747071,1755000644249,-2273.73,0.00019108,2]
[378747072,1755000644259,-460.0,0.00019108,2]